Cogmind - Beta 14 @@@ ROGUE MODE // 2024.11.24 @ 17:03:08 Player: akira Result: Destroyed by L-41 Fighter with Axe Performance ------------- Evolutions (3) 1500 Regions Visited (9) 1800 Robots Destroyed (110) 550 Value Destroyed (4319) 4319 Prototype IDs (30) 600 Alien Tech Used (0) 0 Bonus (2445) 2445 TOTAL SCORE: 11214 Bonus ------- High Alert Combat Kills 878 Follower Combat Kills 67 Entered Garrisons 200 Used RIF Installer 1000 Aligned with FarCom 300 Cogmind --------- Core Integrity 0/700 Matter 2/300 Energy 100/100 System Corruption 14% Temperature Cool (0) Movement Core (700) Ox13 Location -7/Factory Parts ------- > --- POWER (1) -------- (None) > --- PROPULSION (4) --- (None) > --- UTILITY (6) ------ High-capacity Storage Unit Core Analyzer System Shield > --- WEAPON (2) ------- (None) > --- INVENTORY (20) --- Light Nuclear Core Improved Light Armor Plating Shock Absorption System Authchip [R/Combat] Authchip [R/Combat] Relay Coupler [NC] (35) Relay Coupler [NC] (34) Relay Coupler [Cutter] (42) Relay Coupler [Brawler] (36) High-powered Tractor Beam Thief Drone Bay (3/3) Flak Gun Gauss Cannon Gauss Cannon Power Maul Signal Generator Peak State ------------ > --- POWER ------------ Micro Nuclear Core > --- PROPULSION ------- Improved Titanium Leg Improved Titanium Leg Improved Titanium Leg Improved Titanium Leg > --- UTILITY ---------- High-capacity Storage Unit Medium Armor Plating Layered Light Armor Plating Layered Light Armor Plating System Shield Trap Reconfigurator > --- WEAPON ----------- Greatsword > --- INVENTORY -------- Light Treads Advanced Treads Medium Treads Improved Aluminum Leg Improved Aluminum Leg Large Storage Unit Particle Charger Improved Light Armor Plating Shock Absorption System Hacking Suite High-powered Tractor Beam Thief Drone Bay Improved EM Pulse Cannon Improved EM Pulse Cannon Advanced Assault Cannon Heavy Rocket Launcher Power Maul Signal Generator [Rating: 57] Favorites ----------- Power Light Deuterium Engine Engine Light Deuterium Engine Power Core Light Nuclear Core Propulsion Improved Titanium Leg Treads Light Treads Leg Improved Titanium Leg Utility Layered Light Armor Plating Device Trap Reconfigurator Storage High-capacity Storage Unit Processor Core Analyzer Hackware System Shield Protection Layered Light Armor Plating Weapon Greatsword Energy Gun EM Pulse Gun Energy Cannon Improved EM Pulse Cannon Ballistic Gun Gauss Rifle Ballistic Cannon Advanced Assault Cannon Launcher Heavy Rocket Launcher Impact Weapon Power Maul Slashing Weapon Greatsword Piercing Weapon Spear Build | -11 -10 -9 -9 -9 -8 -8 -7 -7 -7 ------- Run | Yrd Mat Mat Min Exi Min Mat Fac Gar Fac Slots Evolved 6 | . . 2 . . . 2 2 . . Power . | . . . . . . . . . . Propulsion 2 | . . . . . . 2 . . . Utility 4 | . . 2 . . . . 2 . . Weapon . | . . . . . . . . . . Parts Attached 172 | 6 10 13 5 1 4 50 31 46 6 Power 16 | 1 3 . 2 . 1 1 2 5 1 Engine 10 | 1 3 . 2 . . 1 . 2 1 Core 6 | . . . . . 1 . 2 3 . Reactor . | . . . . . . . . . . Propulsion 52 | 2 4 6 . . 1 19 9 8 3 Treads 26 | 2 1 5 . . 1 5 4 5 3 Leg 26 | . 3 1 . . . 14 5 3 . Wheel . | . . . . . . . . . . Hover . | . . . . . . . . . . Flight . | . . . . . . . . . . Utility 50 | 1 1 2 2 . . 19 10 14 1 Device 20 | . . . 2 . . 8 6 4 . Storage 5 | 1 . . . . . 3 1 . . Processor 2 | . . . . . . 1 . 1 . Hackware 4 | . 1 . . . . 1 1 1 . Protection 19 | . . 2 . . . 6 2 8 1 Artifact . | . . . . . . . . . . Weapon 54 | 2 2 5 1 1 2 11 10 19 1 Energy Gun 3 | . 1 1 . . . . 1 . . Energy Cannon 3 | . . . . . . . 1 2 . Ballistic Gun 24 | 2 1 4 . 1 2 5 1 7 1 Ballistic Cannon 5 | . . . . . . 1 3 1 . Launcher 6 | . . . . . . 4 1 1 . Special Weapon . | . . . . . . . . . . Impact Weapon 6 | . . . . . . . . 6 . Slashing Weapon 6 | . . . 1 . . . 3 2 . Piercing Weapon 1 | . . . . . . 1 . . . Special Melee Weapon . | . . . . . . . . . . Unidentified Prototypes 4 | . . 1 2 . . . 1 . . Corrupted Parts 1 | . 1 . . . . . . . . System Corruption 2 | . 2 . . . . . . . . Parts Lost 37 | . 3 . 2 . 1 6 2 17 6 Power 6 | . 1 . 1 . . . 1 3 . Propulsion 12 | . 1 . . . . 2 . 5 4 Utility 10 | . 1 . 1 . . 2 1 4 1 Weapon 9 | . . . . . 1 2 . 5 1 Highest Loss Streak 7 | . 1 . 2 . 1 6 1 7 3 To Critical Strikes . | . . . . . . . . . . Average Slot Usage (%) 93 | . 88 86 88 100 100 97 92 93 96 Engine 5 | . 14 11 11 11 6 3 5 1 6 Core 3 | . . . . . 5 5 1 5 . Treads 11 | . 12 16 22 22 22 5 11 8 27 Leg 17 | . 15 5 . . . 28 18 21 . Device 7 | . . . 10 22 22 8 5 10 . Storage 8 | . 14 11 11 11 11 9 7 7 7 Processor 1 | . . . . . . . . 1 7 Hackware 7 | . 5 . . . . 8 7 10 7 Protection 15 | . . 20 12 11 11 9 22 13 21 Ballistic Gun 7 | . 23 22 12 11 18 11 2 2 12 Ballistic Cannon 1 | . . . . . . 3 1 1 . Slashing Weapon 2 | . . . 9 11 4 . 3 3 . Peak Build Rating 57 | 6 9 12 29 30 32 49 57 57 50 Average Rating 42 | 3 6 10 19 29 30 41 51 50 46 On Entrance 25 | . 6 6 11 29 30 32 34 57 46 Naked Turns . | . . . . . . . . . . Heaviest Build 104 | 12 13 22 25 25 27 104 67 75 77 Greatest Support 98 | 40 40 40 40 40 40 84 98 90 98 Greatest Overweight (x) 2 | . 2 1 . . . 1 . 1 1 Average Overweight (x) . | . . . . . . . . . . Largest Inventory Capacity 25 | 8 8 8 8 8 8 25 20 20 20 Average Capacity 15 | 6 8 8 8 8 8 12 16 20 20 Most Carried 20 | 6 5 8 8 8 8 15 20 20 19 Average Carried 12 | 3 3 6 7 7 7 11 11 17 16 Final Capacity 20 | 8 8 8 8 8 8 15 20 20 20 Final Carried 20 | 4 3 6 8 8 7 10 20 17 16 Class Distribution -------------------- 84% | Mutant 13% | Hacker-Mutant Dominant Class ---------------- Mutant | -10/Materials Mutant | -9/Materials Mutant | -9/Mines Mutant | -9/Exiles Skirmisher | -8/Mines Mutant | -8/Materials Mutant | -7/Factory Mutant | -7/Garrison Mutant | -7/Factory Resources | -11 -10 -9 -9 -9 -8 -8 -7 -7 -7 ----------- Run | Yrd Mat Mat Min Exi Min Mat Fac Gar Fac Matter Collected 3538 | 246 181 351 122 . 100 932 557 983 66 Remotely 783 | . . . . . . 425 . 358 . Salvage Created 3763 | . 371 476 84 . 44 976 685 1015 112 Parts 226 | . 18 29 7 . 2 58 56 52 4 Haulers Intercepted 1 | . . . . . . 1 . . . Recyclers Shooed . | . . . . . . . . . . Parts Field Recycled . | . . . . . . . . . . Retrieved Matter . | . . . . . . . . . . Parts Self-Destructed . | . . . . . . . . . . Prevented . | . . . . . . . . . . Kills | -11 -10 -9 -9 -9 -8 -8 -7 -7 -7 ------- Run | Yrd Mat Mat Min Exi Min Mat Fac Gar Fac Combat Hostiles Destroyed 102 | . 11 8 2 . 1 26 20 31 3 Melee 24 | . . . . . . . 12 12 . Guns 43 | . 11 8 2 . 1 12 2 4 3 Cannons 20 | . . . . . . 5 4 11 . AOE 15 | . . . . . . 9 2 4 . Classes Destroyed 13 | . 3 3 . . 1 3 1 1 1 Hauler 1 | . . . . . . 1 . . . Recycler 1 | . . 1 . . . . . . . Operator 4 | . 2 . . . . 1 1 . . Watcher 2 | . . 1 . . . 1 . . . Swarmer 28 | . 6 1 . . . 4 9 8 . Cutter 2 | . . . . . . . . 2 . Grunt 36 | . 5 2 2 . . 13 3 11 . Duelist 1 | . . . . . . . . . 1 Sentry 16 | . . 5 . . . 4 1 6 . Specialist 3 | . . . . . . 3 . . . Hunter 2 | . . . . . 1 1 . . . Programmer 13 | . . . . . . . 7 4 2 Heavy 1 | . . . . . . 1 . . . Best Kill Streak 7 | . 7 2 2 . 1 5 3 5 1 Combat Bots Only 7 | . 7 2 2 . 1 5 3 5 1 Max Kills in Single Turn 2 | . 1 1 1 . 1 2 1 2 1 Gunslinging . | . . . . . . . . . . Exploded 2 | . . . . . . 2 1 2 . Melee 1 | . . . . . . . 1 1 . Uniques/NPCs Destroyed . | . . . . . . . . . . Combat | -11 -10 -9 -9 -9 -8 -8 -7 -7 -7 -------- Run | Yrd Mat Mat Min Exi Min Mat Fac Gar Fac Hostile Shots Fired 970 | . 71 53 16 . 27 147 135 458 63 Missed 287 | . 18 11 2 . 6 46 41 149 14 Damage Taken 9306 | . 549 555 167 . 293 1887 1111 3507 1237 Core 1167 | . 101 119 29 . 46 151 99 359 263 Absorbed by Shields . | . . . . . . . . . . Redirected to Shielding 38 | . . 35 3 . . . . . . Core Remaining (%) 70 | 100 59 . . . 51 72 . . . Volleys Fired 303 | . 39 39 6 . 18 84 22 73 22 Largest 2 | . 2 2 2 . 2 2 2 2 2 Hottest 117 | . 40 46 46 . 46 76 69 117 61 Shots Fired 451 | . 73 78 12 . 19 111 25 92 41 Gun 339 | . 73 78 12 . 19 75 11 30 41 Cannon 95 | . . . . . . 25 12 58 . Launcher 17 | . . . . . . 11 2 4 . Special . | . . . . . . . . . . Kinetic 423 | . 68 78 12 . 19 100 19 86 41 Thermal . | . . . . . . . . . . Explosive 17 | . . . . . . 11 2 4 . Electromagnetic 11 | . 5 . . . . . 4 2 . Robot Hit Streak 18 | . 10 18 9 . 6 14 6 8 11 Robot Miss Streak 5 | . 2 2 5 . 2 4 4 5 4 Penetration Max 1 | . . . . . . 1 . 1 1 Secondary Targets 5 | . 3 . 1 . . . . 1 . Max Gunslinging Chain 1 | . 1 . 1 . . . . 1 . Shots Hit Robots 368 | . 51 61 7 . 12 80 41 85 31 Core Hits 192 | . 23 16 2 . 3 45 21 51 31 Critical Kills 1 | . 1 . . . . . . . . Critical Parts Destroyed 2 | . . 1 . . 1 . . . . Critical Strikes 20 | . 1 1 . . 1 4 6 7 . Destroy 3 | . 1 1 . . 1 . . . . Blast 8 | . . . . . . 4 1 3 . Smash 1 | . . . . . . . . 1 . Sever 8 | . . . . . . . 5 3 . Melee Attacks 76 | . . . . . . 1 36 39 . Impact 14 | . . . . . . . . 14 . Slashing 61 | . . . . . . . 36 25 . Piercing 1 | . . . . . . 1 . . . Sneak Attacks 4 | . . . . . . . . 4 . Combat Hostiles 4 | . . . . . . . . 4 . Follow-up Attacks . | . . . . . . . . . . Damage Inflicted 10316 | . 462 875 100 . 124 2621 1889 3528 717 Guns 3877 | . 438 875 100 . 124 926 139 558 717 Cannons 1875 | . . . . . . 563 256 1056 . Explosions 1898 | . 24 . . . . 1132 191 551 . Melee 2666 | . . . . . . . 1303 1363 . Ramming . | . . . . . . . . . . Kinetic 5626 | . 377 875 100 . 124 1489 354 1590 717 Thermal 24 | . 24 . . . . . . . . Explosive 1874 | . . . . . . 1132 191 551 . Electromagnetic 126 | . 61 . . . . . 41 24 . Impact 174 | . . . . . . . . 174 . Slashing 2492 | . . . . . . . 1303 1189 . Piercing . | . . . . . . . . . . Highest Corruption 14 | . 3 . . . . . 4 9 14 Average Corruption 4 | . 2 . . . . . 1 5 11 Corruption Purged 2 | . . . . . . . 2 . . Corruption Blocked . | . . . . . . . . . . Effects 147 | . 1 . . . . . 25 85 36 Message Errors 29 | . . . . . . . 3 19 7 Matter Fused 32 | . 1 . . . . . 4 20 7 Heat Flow Errors 19 | . . . . . . . 4 11 4 Energy Discharges 28 | . . . . . . . 4 17 7 Parts Fused 3 | . . . . . . . 1 1 1 Data Loss (minor) 18 | . . . . . . . 6 8 4 Data Loss (major) 9 | . . . . . . . 3 4 2 Misfires 5 | . . . . . . . . 3 2 Alerts 2 | . . . . . . . . 2 . Weapon Failures 2 | . . . . . . . . . 2 Overload Shots . | . . . . . . . . . . Overflow Damage 198 | . 10 . . . . 4 71 113 . Projectiles 44 | . . . . . . . . 44 . Explosions 40 | . 10 . . . . 4 . 26 . Melee 114 | . . . . . . . 71 43 . Knockbacks 13 | . . . . . . 5 3 5 . Impact . | . . . . . . . . . . Kinetic 11 | . . . . . . 3 3 5 . Secondary 2 | . . . . . . 2 . . . Self-Inflicted Damage 210 | . 40 . . . . 56 38 76 . Shots 6 | . 1 . . . . 1 1 3 . Rammed . | . . . . . . . . . . Targets Rammed . | . . . . . . . . . . Kicked . | . . . . . . . . . . Crushed . | . . . . . . . . . . Highest Temperature 284 | . 26 36 38 . 10 117 284 275 272 Average Temperature 61 | . 9 14 18 . 7 35 78 89 65 Received Heat Transfer 2025 | . 168 225 90 . . 459 138 783 162 Siege Activations . | . . . . . . . . . . Robots Corrupted . | . . . . . . . . . . Combat Hostiles . | . . . . . . . . . . Parts Fried 2 | . . . . . . . 2 . . Impact Corruptions . | . . . . . . . . . . Robots Melted . | . . . . . . . . . . Combat Hostiles . | . . . . . . . . . . Parts Melted 2 | . . . . . . . . 2 . Heat Transferred 50 | . 50 . . . . . . . . Parts Sabotaged . | . . . . . . . . . . Parts Stolen . | . . . . . . . . . . Parts Stripped . | . . . . . . . . . . Power Chain Reactions 1 | . 1 . . . . . . . . Alert | -11 -10 -9 -9 -9 -8 -8 -7 -7 -7 ------- Run | Yrd Mat Mat Min Exi Min Mat Fac Gar Fac Peak Influence 2449 | . 375 283 106 . 59 626 327 2449 1285 Initial 1285 | . . 27 54 . . 22 284 228 1285 Average 514 | . 188 125 69 . 37 205 195 1140 1154 Maximum Alert Level 5 | . 1 1 . . . 2 1 5 4 Low Security (%) 37 | 100 60 86 100 . 100 48 49 . . Level 1 31 | . 39 13 . . . 42 50 19 . Level 2 4 | . . . . . . 9 . 9 . Level 3 10 | . . . . . . . . 26 42 Level 4 8 | . . . . . . . . 14 57 Level 5 8 | . . . . . . . . 29 . High Security . | . . . . . . . . . . Max Security . | . . . . . . . . . . Squads Dispatched 25 | . 3 . 1 . . 9 7 . 5 Investigation 3 | . 1 . . . . 2 . . . Extermination 8 | . . . . . . . 6 . 2 Reinforcement 10 | . 2 . . . . 6 1 . 1 Assault 4 | . . . 1 . . 1 . . 2 Garrison . | . . . . . . . . . . Intercept . | . . . . . . . . . . Searches Triggered . | . . . . . . . . . . Construction Impeded 1 | . . . . . . 1 . . . Haulers Reinforced . | . . . . . . . . . . Active Scanning Responses . | . . . . . . . . . . Cargo Convoy Interrupts . | . . . . . . . . . . Stealth | -11 -10 -9 -9 -9 -8 -8 -7 -7 -7 --------- Run | Yrd Mat Mat Min Exi Min Mat Fac Gar Fac Distress Signals 12 | . 3 5 . . . 4 . . . Communications Jammed . | . . . . . . . . . . Distress Signals . | . . . . . . . . . . Times Spotted 193 | . 22 17 5 . 6 53 37 34 19 Peak Tracking Total 9 | . 9 5 4 . 5 5 5 9 8 Tactical Retreats 28 | . 2 1 2 . 1 9 7 3 3 Traps | -11 -10 -9 -9 -9 -8 -8 -7 -7 -7 ------- Run | Yrd Mat Mat Min Exi Min Mat Fac Gar Fac Traps Triggered 15 | . 3 . . . . 2 2 7 1 Indirectly . | . . . . . . . . . . Trap Hack Attempts . | . . . . . . . . . . Triggered . | . . . . . . . . . . Disarmed . | . . . . . . . . . . Reprogrammed . | . . . . . . . . . . Reused 13 | . . . . . . 4 4 5 . Traps Reconfigurated 55 | . . . . . . 11 15 29 . Traps Extracted . | . . . . . . . . . . Installed . | . . . . . . . . . . Triggered 13 | . . . . . . 4 4 5 . Machines | -11 -10 -9 -9 -9 -8 -8 -7 -7 -7 ---------- Run | Yrd Mat Mat Min Exi Min Mat Fac Gar Fac Machines Disabled 7 | . 2 . . . 1 4 . . . Max in Single Turn 2 | . 2 . . . 1 1 . . . Machines Repaired . | . . . . . . . . . . Machines Dismantled . | . . . . . . . . . . Machines Sabotaged . | . . . . . . . . . . Overloaded Fab Kills . | . . . . . . . . . . Hacking | -11 -10 -9 -9 -9 -8 -8 -7 -7 -7 --------- Run | Yrd Mat Mat Min Exi Min Mat Fac Gar Fac Machines Accessed 18 | . 2 1 1 1 . 3 4 5 1 Terminals 13 | . 2 1 . . . 2 3 5 . Fabricators . | . . . . . . . . . . Repair Stations . | . . . . . . . . . . Recycling Units 1 | . . . . . . . . . 1 Scanalyzers 1 | . . . . . . 1 . . . Garrison Access 1 | . . . . . . . 1 . . Total Hacks 42 | . 6 2 1 1 . 15 7 8 2 Successful 23 | . 3 1 1 1 . 10 3 4 . Failed 19 | . 3 1 . . . 5 4 4 2 Catastrophic 3 | . 1 . . . . 1 . 1 . Database Lockouts . | . . . . . . . . . . Manual 12 | . 2 . . 1 . 9 . . . Terminals 31 | . 6 2 . . . 10 5 8 . Fabricators . | . . . . . . . . . . Repair Stations . | . . . . . . . . . . Recycling Units 2 | . . . . . . . . . 2 Scanalyzers 5 | . . . . . . 5 . . . Garrison Access 2 | . . . . . . . 2 . . Terminal Hacks 17 | . 3 1 1 1 . 5 2 4 . Record 2 | . 1 . . . . 1 . . . Part Schematic 1 | . . . . . . 1 . . . Robot Analysis 2 | . . . . . . 2 . . . Prototype ID Bank 1 | . . . . . . . 1 . . Open Door 2 | . . . 1 . . . . 1 . Open DSF 1 | . . . . . . . 1 . . Repair Station Index 1 | . . . . . . 1 . . . Alert Level 1 | . 1 . . . . . . . . Unreport Threat 1 | . 1 . . . . . . . . Reinforcement Status 1 | . . 1 . . . . . . . Garrison Registry 1 | . . . . . . . . 1 . Patrol Navigation 1 | . . . . . . . . 1 . Security Stations 1 | . . . . . . . . 1 . Derelict Proto ID Bank 1 | . . . . 1 . . . . . Fabricator Hacks . | . . . . . . . . . . Repair Station Hacks . | . . . . . . . . . . Recycling Unit Hacks . | . . . . . . . . . . Scanalyzer 5 | . . . . . . 5 . . . Insert Component 3 | . . . . . . 3 . . . Analyze 2 | . . . . . . 2 . . . Garrison Access Hacks 1 | . . . . . . . 1 . . Unlock Access 1 | . . . . . . . 1 . . Unauthorized Hacks . | . . . . . . . . . . Terminals . | . . . . . . . . . . Fabricators . | . . . . . . . . . . Repair Stations . | . . . . . . . . . . Recycling Units . | . . . . . . . . . . Scanalyzers . | . . . . . . . . . . Garrison Access . | . . . . . . . . . . Data Cores Recovered . | . . . . . . . . . . Used . | . . . . . . . . . . Hacking Detections 12 | . 2 1 . . . 2 3 3 1 Full Trace Events 3 | . 2 . . . . 1 . . . Feedback Events 1 | . 1 . . . . . . . . Hackware Fried 1 | . 1 . . . . . . . . Feedback Blocked . | . . . . . . . . . . Robot Schematics Acquired . | . . . . . . . . . . Robots Built . | . . . . . . . . . . Authchips . | . . . . . . . . . . Time . | . . . . . . . . . . Total Robot Build Rating . | . . . . . . . . . . Part Schematics Acquired 3 | . . . . . . 3 . . . Parts Built . | . . . . . . . . . . Authchips . | . . . . . . . . . . Time . | . . . . . . . . . . Total Part Build Rating . | . . . . . . . . . . Parts Repaired . | . . . . . . . . . . Time . | . . . . . . . . . . Parts Recycled . | . . . . . . . . . . Recycled Matter . | . . . . . . . . . . Retrieved Matter . | . . . . . . . . . . Retrieved Components . | . . . . . . . . . . Parts Scanalyzed 2 | . . . . . . 2 . . . Part Schematics Acquired 2 | . . . . . . 2 . . . Parts Damaged . | . . . . . . . . . . Bothacking | -11 -10 -9 -9 -9 -8 -8 -7 -7 -7 ------------ Run | Yrd Mat Mat Min Exi Min Mat Fac Gar Fac Used RIF Installer 2 | . . . . . . . . 2 . Alert ID Control 1 | . . . . . . . . 1 . Robots Hacked . | . . . . . . . . . . Non-combat . | . . . . . . . . . . Combat . | . . . . . . . . . . Robot Hacks Applied . | . . . . . . . . . . Relay Couplers Released . | . . . . . . . . . . Fabnet Peak Effective % . | . . . . . . . . . . Robots Rewired . | . . . . . . . . . . Allies Hacked . | . . . . . . . . . . Hacks Repelled . | . . . . . . . . . . Allies | -11 -10 -9 -9 -9 -8 -8 -7 -7 -7 -------- Run | Yrd Mat Mat Min Exi Min Mat Fac Gar Fac Total Allies 1 | . . . 1 . . . . . . Largest Group 1 | . . . 1 1 1 . . . . Highest-Rated Group 31 | . . . 31 31 31 . . . . Highest-Rated Ally 31 | . . . 31 31 31 . . . . Total Orders 12 | . . . . . . 10 1 1 . RETURN 12 | . . . . . . 10 1 1 . Ally Attacks 78 | . . . 3 . 14 48 . 13 . Total Damage 360 | . . . 20 . 78 197 . 65 . Kills 4 | . . . . . 1 . . 3 . Allies Corrupted . | . . . . . . . . . . Allies Melted . | . . . . . . . . . . Intel | -11 -10 -9 -9 -9 -8 -8 -7 -7 -7 ------- Run | Yrd Mat Mat Min Exi Min Mat Fac Gar Fac Robot Analysis Total 2 | . . . . . . 2 . . . Derelict Logs Recovered . | . . . . . . . . . . Drone Launches 37 | . . . . . 3 28 3 3 . Drone Recoveries 37 | . . . . . 3 28 3 3 . Exploration | -11 -10 -9 -9 -9 -8 -8 -7 -7 -7 ------------- Run | Yrd Mat Mat Min Exi Min Mat Fac Gar Fac Turns Passed 13750 | 84 643 610 546 359 114 2898 3862 3657 977 Spaces Moved 5208 | 47 240 284 308 223 38 977 1266 1487 338 Core 7 | 5 2 . . . . . . . . Treads 2936 | 42 164 206 308 223 38 200 854 563 338 Legs 2265 | . 74 78 . . . 777 412 924 . Wheels . | . . . . . . . . . . Hover . | . . . . . . . . . . Flight . | . . . . . . . . . . Fastest Speed 50 | 50 120 120 160 160 160 110 130 125 155 Average Speed 145 | 148 147 149 160 160 160 135 149 139 157 Slowest Speed 240 | 160 160 190 160 160 160 232 160 235 240 Overloaded Moves . | . . . . . . . . . . Propulsion Burnouts . | . . . . . . . . . . Robots Hopped . | . . . . . . . . . . Cave-ins Triggered . | . . . . . . . . . . Exploration Rate (%) 35 | 4 38 31 72 42 11 41 25 83 9 Regions Visited 9 Branch Regions 3 Pre-discovered Areas . | . . . . . . . . . . Known Exits Taken 1 | . . . . . . . 1 . . Unknown Exits Taken 7 | 1 1 1 1 1 1 1 . . . Scrap Searched 1 | . . . 1 . . . . . . Spaces Dug 2 | . . . . . . 1 1 . . Terrain Destroyed 190 | . . . . . . 102 15 72 1 Melee 2 | . . . . . . 1 1 . . Projectile 12 | . . . . . . 9 1 1 1 AOE 176 | . . . . . . 92 13 71 . Terrain Rammed . | . . . . . . . . . . Walls Destroyed . | . . . . . . . . . . Machines Disabled . | . . . . . . . . . . Actions | -11 -10 -9 -9 -9 -8 -8 -7 -7 -7 --------- Run | Yrd Mat Mat Min Exi Min Mat Fac Gar Fac Total 10828 | 61 467 403 350 226 74 2452 3144 2908 743 Wait 4835 | . 176 45 27 1 9 1278 1741 1193 365 Move 5199 | 46 239 283 307 222 37 976 1265 1486 338 Hop . | . . . . . . . . . . Pick Up 119 | 9 3 11 4 1 2 28 28 27 6 Fast Attach 16 | 1 3 2 1 . . 3 2 4 . Attach 68 | 5 5 1 2 1 1 13 13 26 1 Detach 12 | . . . . . . 3 6 3 . Swap 88 | . 2 10 2 . 3 34 16 16 5 Drop 88 | . . 12 1 1 4 32 15 17 6 Fire 303 | . 39 39 6 . 18 84 22 73 22 Melee 76 | . . . . . . 1 36 39 . Ram . | . . . . . . . . . . Kick . | . . . . . . . . . . Crush . | . . . . . . . . . . Escape Stasis 24 | . . . . . . . . 24 . Rewire . | . . . . . . . . . . Trap . | . . . . . . . . . . Miscellaneous . | . . . . . . . . . . Route ------- -11/Scrapyard -10/Materials (discovered 2 exits: *Mat / [*Min]) -9/Materials -9/Mines (discovered 2 exits: *Mat / *Exi) -9/Exiles -8/Mines -8/Materials -7/Factory (discovered 3 exits: [*Fac] / [*Low] / Gar) -7/Garrison (discovered 3 exits: *Fac x3) -7/Factory History --------- Turn | Location | Event 4 | -11/Scrapyard | Discovered new exit (range 16) 85 | -11/Scrapyard | Entered Materials 151 | -10/Materials | Discovered new exit (range 9) 301 | -10/Materials | Destroyed 7 combat bots 316 | -10/Materials | Build established: Mutant 695 | -10/Materials | Discovered new exit (range 9) 702 | -10/Materials | Hacking Suite fried by hacking feedback 728 | -10/Materials | Entered another Materials area 728 | -9/Materials | Evolved 2 slots: Utility x2 1230 | -9/Materials | Discovered new exit (range 16) 1338 | -9/Materials | Entered Mines 1339 | -9/Mines | Met a Derelict testing a Signal Generator 1342 | -9/Mines | Found Signal Generator 1418 | -9/Mines | A weapon hastily lodged in a ceiling crevice suddenly fell to the ground 1482 | -9/Mines | Found the Drone Emporium 1492 | -9/Mines | Found Prototype Device 1492 | -9/Mines | Identified Thief Drone Bay 1583 | -9/Mines | Discovered new exit (range 5) 1735 | -9/Mines | Found a damaged Exp. Sensor Array with a note attached 1758 | -9/Mines | Found Prototype Device 1759 | -9/Mines | Identified Exp. Sensor Array 1793 | -9/Mines | Received a Rocket Launcher from a helpful Derelict 1876 | -9/Mines | Deemed a non-threat by the Exiles lab entrance 1878 | -9/Mines | Discovered new exit (range 5) 1884 | -9/Mines | Entered Exiles 1884 | -9/Exiles | Accompanied by 1 ally 1908 | -9/Exiles | Discovered new exit (range 15) 1926 | -9/Exiles | Met 8R-AWN 1956 | -9/Exiles | Met EX-HEX 2009 | -9/Exiles | Met EX-BIN 2030 | -9/Exiles | Aligned with FarCom system 2032 | -9/Exiles | Given EX-Vault access code 2070 | -9/Exiles | Opened EX-Vault 2082 | -9/Exiles | Found Trap Reconfigurator 2114 | -9/Exiles | Warned to stay clear of 0b10 Research branches 2243 | -9/Exiles | Left Exiles lab with Trap Reconfigurator 2243 | -9/Exiles | Entered Mines 2243 | -8/Mines | Accompanied by 1 ally 2348 | -8/Mines | Discovered new exit (range 7) 2357 | -8/Mines | Entered Materials 2357 | -8/Materials | Evolved 2 slots: Propulsion x2 5050 | -8/Materials | Discovered new exit (range 16) 5157 | -8/Materials | First assault squad dispatched 5255 | -8/Materials | Entered Factory 5255 | -7/Factory | Evolved 2 slots: Utility x2 5262 | -7/Factory | Lost 6 parts (2n2u2w) 6813 | -7/Factory | Discovered new exit (range 4) 7948 | -7/Factory | Discovered new exit (range 10) 9113 | -7/Factory | Identified exit to Garrison 9117 | -7/Factory | Entered Garrison 9293 | -7/Garrison | Triggered checkpoint 9709 | -7/Garrison | Triggered checkpoint 9979 | -7/Garrison | Triggered checkpoint 10117 | -7/Garrison | Triggered checkpoint 10199 | -7/Garrison | Lost 7 parts (2p1n2u2w) 10341 | -7/Garrison | Build established: Hacker-Mutant 10347 | -7/Garrison | Discovered new exit (range 13) 10473 | -7/Garrison | Triggered checkpoint 10582 | -7/Garrison | Learned Factory security intel 10771 | -7/Garrison | Triggered checkpoint 10819 | -7/Garrison | Discovered new exit (range 13) 10865 | -7/Garrison | Triggered checkpoint 11353 | -7/Garrison | Triggered checkpoint 11467 | -7/Garrison | Triggered checkpoint 11503 | -7/Garrison | Triggered checkpoint 11666 | -7/Garrison | Discovered new exit (range 12) 11720 | -7/Garrison | Core integrity fell below 50% 11776 | -7/Garrison | Lost 7 parts (1p2n2u2w) 11821 | -7/Garrison | Triggered checkpoint 12023 | -7/Garrison | Build established: Mutant 12043 | -7/Garrison | Discovered new exit (range 69) 12043 | -7/Garrison | Discovered new exit (range 22) 12043 | -7/Garrison | Discovered new exit (range 63) 12276 | -7/Garrison | Installed Relay Interface Framework 12474 | -7/Garrison | Expanded RIF knowledge: Alert ID Control 12774 | -7/Garrison | Entered Factory 12898 | -7/Factory | System corruption reached 10% 13574 | -7/Factory | First assault squad dispatched 13721 | -7/Factory | Core integrity fell below 20% 13751 | -7/Factory | Destroyed by L-41 Fighter with Axe Last Messages --------------- lost. 13710_ L-41 Fighter destroyed. 13710_ Slug penetrates M-28 Smith. 13717_ K-01 Serf cleans the Nuclear Reactor. 13721_ Slug penetrates L-41 Fighter. 13723_ K-01 Serf cleans the Nuclear Reactor. 13725_ Imp. Light Armor Plating destroyed. 13727_ Med. Treads destroyed. 13728_ K-01 Serf cleans the Nuclear Reactor. 13731_ System corrupted: Heat flow error (+105). 13731_ KE Penetrator destroyed. 13733_ K-01 Serf cleans the Nuclear Reactor. 13738_ Flak Gun severed. 13740_ K-01 Serf collects debris. 13740_ M-28 Smith repairs M-28 Smith. 13745_ M-28 Smith repairs L-41 Fighter. 13747_ M-28 Smith repairs Carbon-fiber Leg. 13749_ M-28 Smith repairs Imp. Deuterium Engine. 13749_ Imp. Deuterium Engine severed. 13751_ System corrupted: Matter fused (-6). Map ----- +----------------------------------------------------+ | ?????????????????????????????????????????????????? | | ?????????????????????????????????????????????????? | | ?????????????????????????????????????????????????? | | ?????????????????????????????????????????????????? | | ?????????????????????????????????????????????????? | | ?????????????????????????????????????????????????? | | ?????????????????????????????????????????????????? | | ???????????##########????????????????????????????? | | ???????????# ??????????????????########### | | ???????????# "??????????????????#! | | ???????????# " "????????????????# """"""" | | ???????????# = " " #??????????????# ! """"""" | | ???????????# " " #??????????????# """"""" | | ???????????#* " " #??????????????#] """"""" | | ???????????# " " #??????????????# | | ???????????? " " #?????????????###+######## | | ???????????# "" "" " " #???????????????# #????### | | ???????????# ""R"" " " #???????????????# #????# | | ???????????# """" #???????????????# #????# | | ???????????# #???????????????# #????# | | ???????????#######+######??############## ###### | | ?????????????# = #???# """ # | | ?????????????# #???# "T" # | | ?????????????# #???# """ " " # """"" | | ?????????????# !##### """ # ""T"" | | ?????????????# m/!l@!k[ """ # | | ?????????????# m##### u + | | ?????????????# #???# """ """ #h | | ?????????????# #???# """ """ # | | ?????????????# !#???# """ """ ##### ## | | ?????????????### ###???#! #???? #? | | ???????????????#" " #?????# #???? #? | | ???????????????#%"%" #?????# #????? #? | | ???????????????#" " #?????##############????? #? | | ???????????????# g#???????????????????????? #? | | ???????????????# g#????????????????????????? #? | | ???????????????# #????????????????????????? #? | | ???????????????# #??????????????????????????#? | | ???????????????# ????????????????????????????? | | ???????????????# g ????????????????????????????? | | ???????????????# g????????????????????????????? | | ???????????????# ????????????????????????????? | | ????????????????? ????????????????????????????? | | ?????????????????????????????????????????????????? | | ?????????????????????????????????????????????????? | | ?????????????????????????????????????????????????? | | ?????????????????????????????????????????????????? | | ?????????????????????????????????????????????????? | | ?????????????????????????????????????????????????? | | ?????????????????????????????????????????????????? | +----------------------------------------------------+ Best States ------------- Heat Dissipation 34 Energy Generation 16 Energy Capacity 290 Matter Stores 300 Matter Capacity 300 Sight Range 16 Robot Scan Range 20 Terrain Scan Density 10 Armor Coverage 600 Resistance: EX 25 Weapon Shielding 33 Evasion (%) 55 Targeting Accuracy 6 Core Analysis 6 Recoil Reduction 4 Particle Charging 15 Offensive Hacking 10 Defensive Hacking 10 Authchip Count 2 Item Schematics ----------------- Imp. Titanium Leg | -8/Materials | Scanalyzed Lyr. Light Armor Plating | -8/Materials | Scanalyzed Hacking Suite | -8/Materials | Hacked Robot Schematics ------------------ None Fabricated ------------ Nothing Alien Tech Used ----------------- None Achievements -------------- None Challenges ------------ None Game ------ Seed DrainedBattleRail Manual? 0 Play Time 02:04:58 Cumulative 35.3 hours Start 2024.11.24 @ 14:50:23 End 2024.11.24 @ 17:03:08 Sessions 1 Manual Loads 0 Difficulty Rogue Special Mode None Game No. 49 Rogue 49 Adventurer 0 Explorer 0 Win Type - Total 0 Types 0/0/0/0/0/0/0/0/0 Lore% 9 Gallery% 21 Achievement% 23 Wizard Run 0 Options --------- Layout 1 ASCII 0 Keyboard 0 Movement Mouse Keybinds 0 Fullscreen 2 Font 16/SmallcapsGlow Map View 55x38 Zoom Use 7% Tactical HUD 1 Map Filters NONE Filters NONE Steam 1 RUN: 8af55436-c767-41f1-9e24-169713e412a1